Workbook

Sheet ToolStammdaten (hidden)
B1: A Klasse | C1: B Klasse | E1: ABC Analyse | G1: Berechnungsart | I1: Währung | K1: Diagramm Titel
B3: 0.29999999 | C3: =Dashboard!G16+0.01 -> 0.86 | E3: Artikel | G3: Deckungsbeitrag | I3: Euro | K3: =ABC_Art_DB &" ABC-Analyse" -> Kunden ABC-Analyse
B4: 0.31 | C4: =IF(C3="","",IF(C3+0.01<=0.99,C3+0.01,"")) -> 0.87 | E4: Kunden | G4: Umsatz | I4: Franken | K4: ="nach "& [0]!ABC_Berechnungsart_DB -> nach Umsatz
B5: 0.32 | C5: =IF(C4="","",IF(C4+0.01<=0.99,C4+0.01,"")) -> 0.88 | E5: Lieferanten | G5: Warenaufwand | I5: Dollar | K5: ="Top 10 " & ABC_Art_DB -> Top 10 Kunden
B6: 0.33 | C6: 0.89 | E6: Dienstleistung | G6: Zugriffe | I6: Pfund
B7: 0.34 | C7: 0.9 | G7: Absatz | I7: keine
B8: 0.35 | C8: 0.91
B9: 0.36 | C9: 0.92
B10: 0.37 | C10: 0.93
B11: 0.38 | C11: 0.94
B12: 0.39 | C12: 0.95
B13: 0.4 | C13: 0.96
B14: 0.41 | C14: 0.97
B15: 0.42 | C15: 0.98
B16: 0.43 | C16: 0.99
B17: 0.44
B18: 0.45
B19: 0.46
B20: 0.47
B21: 0.48
B22: 0.49
B23: 0.5
B24: 0.51
B25: 0.52
B26: 0.53
B27: 0.54
B28: 0.55
B29: 0.56
B30: 0.57
B31: 0.58
B32: 0.59
B33: 0.6
B34: 0.61
B35: 0.62
B36: 0.63
B37: 0.64
B38: 0.65
B39: 0.66
B40: 0.67
B41: 0.68
B42: 0.69
B43: 0.7
B44: 0.71
B45: 0.72
B46: 0.73
B47: 0.74
B48: 0.75
B49: 0.76
B50: 0.77
B51: 0.78
B52: 0.79
B53: 0.8
B54: 0.81
B55: 0.82
B56: 0.83
B57: 0.84
B58: 0.85
B59: 0.86
B60: 0.87
B61: 0.88
B62: 0.89
B63: 0.9
B64: 0.91
B65: 0.92
B66: 0.93
B67: 0.94
B68: 0.95
B69: 0.96 | C69: =IF(C68="","",IF(C68+0.01<=0.99,C68+0.01,"")) -> 
B70: 0.97 | C70: =IF(C69="","",IF(C69+0.01<=0.99,C69+0.01,"")) -> 
B71: 0.98 | C71: =IF(C70="","",IF(C70+0.01<=0.99,C70+0.01,"")) -> 
B72: 0.99 | C72: =IF(C71="","",IF(C71+0.01<=0.99,C71+0.01,"")) -> 

Sheet Berechnung1 (hidden)
A3: Zeilenbeschriftungen | B3: Kunden | C3: Kunden in% | D3: Umsatz | E3: Umsatz in%
A4: A | B4: 22 | C4: 0.1833333333 | D4: 379931 | E4: 0.8466900663
A5: B | B5: 12 | C5: 0.1 | D5: 44544 | E5: 0.09926792579
A6: C | B6: 86 | C6: 0.7166666667 | D6: 24250 | E6: 0.05404200791
A27: =IF(A4="(Leer)","",A4) -> A | B27: =IF(B4="","",B4) -> 22 | C27: =IF(B4="","",C4) -> 0.1833333333 | D27: =IF(D4="","",D4) -> 379931 | E27: =IF(D4="","",E4) -> 0.8466900663
A28: =IF(A5="","",A5) -> B | B28: =IF(B5="","",B5) -> 12 | C28: =IF(C5="","",C5) -> 0.1 | D28: 44544 | E28: 0.09926792579
A29: =IF(A6="","",A6) -> C | B29: =IF(B6="","",B6) -> 86 | C29: =IF(C6="","",C6) -> 0.7166666667 | D29: 24250 | E29: 0.05404200791

Sheet Berechnung2 (hidden)
B2: =ABC_Art_DB -> Kunden | D2: Umsat in %
B3: Mott | D3: 0.245139005
B4: Arndt | D4: 0.1002841384
B5: Brinkmann | D5: 0.0757702379
B6: Mertens | D6: 0.07131316508
B7: Peters | D7: 0.04457072817
B8: Meier | D8: 0.0267424369
B9: Ganz | D9: 0.02476126804
B10: Deck | D10: 0.02005459914
B11: Müller | D11: 0.02005014207
B12: Brucher | D12: 0.02004791353
B13: ="Restliche " &ABC_Art_DB -> Restliche Kunden | D13: =IF(SUM(D3:D12)=0,"",1-SUM(D3:D12)) -> 0.3512663658

Sheet Berechnung3 (hidden)
B2: Klasse | C2: Wertanteil | D2: Mengenanteil | E2: Mengenanteil
B3: A | C3: 0.8466900663 | D3: =-1*E3 -> -0.1833333333 | E3: 0.1833333333
B4: B | C4: 0.09926792579 | D4: =-1*E4 -> -0.1 | E4: 0.1
B5: C | C5: 0.05404200791 | D5: =-1*E5 -> -0.7166666667 | E5: 0.7166666667

Sheet Dashboard
D1: =ABC_Art_DB & " ABC-Analyse" -> Kunden ABC-Analyse | U1: MeineVorlagen.com
D2: ="Berechnet nach "&G13 -> Berechnet nach Umsatz | U2: MeineVorlagen.com
D3: Zeitraum: | G3: ??.??.???? bis ??.??.???? | U3: Musteradresse 16
D4: Erstellt von: | G4: Hans Muster | U4: 9500 Wil (SG)
U5: www.meinevorlagen.com
U6: info@meinevorlagen.com
D9: ABC Art | Q9: ="Top 10 " & ABC_Art_DB -> Top 10 Kunden
G10: Kunden | K10: Klasse | L10: Kunden | M10: in % | N10: Umsatz | O10: in %
K11: A | L11: 22 | M11: 0.1833333333 | N11: 379931 | O11: 0.8466900663
D12: Berechnungsart | K12: B | L12: 12 | M12: 0.1 | N12: 44544 | O12: 0.09926792579
F13: ABC nach | G13: Umsatz | K13: C | L13: 86 | M13: 0.7166666667 | N13: 24250 | O13: 0.05404200791
K14: Total | L14: =SUM(L11:L13) -> 120 | M14: =SUM(M11:M13) -> 1 | N14: =SUM(N11:N13) -> 448725 | O14: =SUM(O11:O13) -> 1
D15: ABC Klassen
F16: A - Klasse | G16: 0.85
F17: B - Klasse | G17: 0.95
F18: C - Klasse | G18: 1
D20: Währung
G21: Euro

Sheet Rohdaten
A1: Rohdaten
A2: Ein Musterdatensatz, zum testen des Tools, kann hier heruntergeladen werden: | C2: Musterdatensatz.xlsx
A4: Kunden Nr. | B4: Kunden | C4: Umsatz
A5: 1001 | B5: Mott | C5: 110000
A6: 1002 | B6: Peters | C6: 20000
A7: 1003 | B7: Brinkmann | C7: 34000
A8: 1004 | B8: Arndt | C8: 45000
A9: 1005 | B9: Mertens | C9: 32000
A10: 1006 | B10: Meier | C10: 12000
A11: 1007 | B11: Kuhn | C11: 1
A12: 1008 | B12: Deck | C12: 8999
A13: 1009 | B13: Ganz | C13: 11111
A14: 1010 | B14: Müller | C14: 8997
A15: 1011 | B15: Brucher | C15: 8996
A16: 1012 | B16: Höppner | C16: 5666
A17: 1013 | B17: Hermanns | C17: 7998
A18: 1014 | B18: Martinez | C18: 2422
A19: 1015 | B19: Mager | C19: 7996
A20: 1016 | B20: Hein | C20: 444
A21: 1017 | B21: Heyl | C21: 7994
A22: 1018 | B22: Frenzen | C22: 7992
A23: 1019 | B23: Keil | C23: 7990
A24: 1020 | B24: Schmitz | C24: 7988
A25: 1021 | B25: Seifer | C25: 7986
A26: 1022 | B26: Schäfer | C26: 2323
A27: 1023 | B27: Hövel | C27: 7984
A28: 1024 | B28: Brucherseifer | C28: 2
A29: 1025 | B29: Gerfer | C29: 2323
A30: 1026 | B30: Seifer | C30: 444
A31: 1027 | B31: Witte | C31: 5900
A32: 1028 | B32: Höppner | C32: 3
A33: 1029 | B33: Wiemer | C33: 320
A34: 1030 | B34: Heck | C34: 5700
A35: 1031 | B35: Jamann | C35: 5500
A36: 1032 | B36: Roth | C36: 5300
A37: 1033 | B37: Deck | C37: 334
A38: 1034 | B38: Köpke | C38: 6000
A39: 1035 | B39: Mager | C39: 6500
A40: 1036 | B40: Mertens | C40: 6300
A41: 1037 | B41: Brinkmann | C41: 222
A42: 1038 | B42: Hagen | C42: 333
A43: 1039 | B43: Krämer | C43: 6100
A44: 1040 | B44: Kuhn | C44: 2500
A45: 1041 | B45: Wiemer | C45: 2300
A46: 1042 | B46: Ganz | C46: 2100
A47: 1043 | B47: Jamann | C47: 1900
A48: 1044 | B48: Vitt | C48: 1700
A49: 1045 | B49: Roth | C49: 1500
A50: 1046 | B50: Höfig | C50: 1300
A51: 1047 | B51: Müller | C51: 1100
A52: 1048 | B52: Binder | C52: 900
A53: 1049 | B53: Kolb | C53: 333
A54: 1050 | B54: Heck | C54: 2300
A55: 1051 | B55: Gatzmann | C55: 2310
A56: 1052 | B56: Keil | C56: 2222
A57: 1053 | B57: Brucher | C57: 44
A58: 1054 | B58: Helt | C58: 980
A59: 1055 | B59: Hagen | C59: 980
A60: 1056 | B60: Hermanns | C60: 920
A61: 1057 | B61: Peters | C61: 876
A62: 1058 | B62: Krämer | C62: 150
A63: 1059 | B63: Haber | C63: 150
A64: 1060 | B64: Simon | C64: 150
A65: 1061 | B65: Binder | C65: 13
A66: 1062 | B66: Schäfer | C66: 150
A67: 1063 | B67: Witte | C67: 150
A68: 1064 | B68: Dunkel | C68: 150
A69: 1065 | B69: Hecht | C69: 150
A70: 1066 | B70: Schmitz | C70: 150
A71: 1067 | B71: Hermanns | C71: 150
A72: 1068 | B72: Deck | C72: 113
A73: 1069 | B73: Deck | C73: 112
A74: 1070 | B74: Deck | C74: 111
A75: 1071 | B75: Deck | C75: 110
A76: 1072 | B76: Deck | C76: 109
A77: 1073 | B77: Deck | C77: 108
A78: 1074 | B78: Deck | C78: 107
A79: 1075 | B79: Deck | C79: 106
A80: 1076 | B80: Deck | C80: 14
A81: 1077 | B81: Deck | C81: 103
A82: 1078 | B82: Deck | C82: 102
A83: 1079 | B83: Deck | C83: 101
A84: 1080 | B84: Deck | C84: 100
A85: 1081 | B85: Deck | C85: 99
A86: 1082 | B86: Deck | C86: 98
A87: 1083 | B87: Deck | C87: 97
A88: 1084 | B88: Deck | C88: 96
A89: 1085 | B89: Deck | C89: 95
A90: 1086 | B90: Deck | C90: 94
A91: 1087 | B91: Deck | C91: 15
A92: 1088 | B92: Deck | C92: 92
A93: 1089 | B93: Deck | C93: 16
A94: 1090 | B94: Deck | C94: 90
A95: 1091 | B95: Deck | C95: 89
A96: 1092 | B96: Deck | C96: 88
A97: 1093 | B97: Deck | C97: 87
A98: 1094 | B98: Deck | C98: 5
A99: 1095 | B99: Deck | C99: 85
A100: 1096 | B100: Deck | C100: 84
A101: 1097 | B101: Deck | C101: 83
A102: 1098 | B102: Deck | C102: 6
A103: 1099 | B103: Deck | C103: 81
A104: 1100 | B104: Deck | C104: 80
A105: 1101 | B105: Deck | C105: 79
A106: 1102 | B106: Deck | C106: 78
A107: 1103 | B107: Hövel | C107: 60
A108: 1104 | B108: Vitt | C108: 65
A109: 1105 | B109: Gatzmann | C109: 7
A110: 1106 | B110: Kolb | C110: 70
A111: 1107 | B111: Driesch | C111: 75
A112: 1108 | B112: Hein | C112: 80
A113: 1109 | B113: Haber | C113: 8
A114: 1110 | B114: Helt | C114: 85
A115: 1111 | B115: Hermanns | C115: 90
A116: 1112 | B116: Kleiber | C116: 9
A117: 1113 | B117: Heyl | C117: 95
A118: 1114 | B118: Mott | C118: 4
A119: 1115 | B119: Dunkel | C119: 100
A120: 1116 | B120: Frenzen | C120: 105
A121: 1117 | B121: Hecht | C121: 10
A122: 1118 | B122: Deck | C122: 110
A123: 1119 | B123: Seiler | C123: 11
A124: 1120 | B124: Leven | C124: 12

Sheet ABC-Analyse
A1: © Copyright by MeineVorlagen – www.MeineVorlagen.com - Alle Rechte vorbehalten
A4: =ABC_Art_DB & " ABC-Analyse" -> Kunden ABC-Analyse | I4: Klassen | J4: Klassengrenzen [%]
A5: =" " &Dashboard!U2 -> MeineVorlagen.com | I5: A | J5: =Dashboard!G16 -> 0.85
A6: =" " &"Erstellt von: " & Dashboard!G4 -> Erstellt von: Hans Muster | I6: B | J6: =Dashboard!G17 -> 0.95
A7: =" " &CONCATENATE("Druck: ",TEXT(TODAY(),"TT.MM.JJ")," um ",TEXT(NOW(),"hh.mm")) -> Druck: 25.10.15 um 14.26 | I7: C | J7: =Dashboard!G18 -> 1
A9: Nr. | B9: Kunden Nr. | C9: Kunden | D9: Umsatz | E9: Rang | F9: Wertanteil | G9: Kum.Wertanteil | H9: Anteil | I9: Km.Anteil | J9: ABC Klasse
A10: 1 | B10: 1001 | C10: Mott | D10: 110000 | E10: 1 | F10: 0.245139005 | G10: 0.245139005 | H10: 0.008333333333 | I10: 0.008333333333 | J10: A
A11: 2 | B11: 1004 | C11: Arndt | D11: 45000 | E11: 2 | F11: 0.1002841384 | G11: 0.3454231434 | H11: 0.008333333333 | I11: 0.01666666667 | J11: A
A12: 3 | B12: 1003 | C12: Brinkmann | D12: 34000 | E12: 3 | F12: 0.0757702379 | G12: 0.4211933812 | H12: 0.008333333333 | I12: 0.025 | J12: A
A13: 4 | B13: 1005 | C13: Mertens | D13: 32000 | E13: 4 | F13: 0.07131316508 | G13: 0.4925065463 | H13: 0.008333333333 | I13: 0.03333333333 | J13: A
A14: 5 | B14: 1002 | C14: Peters | D14: 20000 | E14: 5 | F14: 0.04457072817 | G14: 0.5370772745 | H14: 0.008333333333 | I14: 0.04166666667 | J14: A
A15: 6 | B15: 1006 | C15: Meier | D15: 12000 | E15: 6 | F15: 0.0267424369 | G15: 0.5638197114 | H15: 0.008333333333 | I15: 0.05 | J15: A
A16: 7 | B16: 1009 | C16: Ganz | D16: 11111 | E16: 7 | F16: 0.02476126804 | G16: 0.5885809794 | H16: 0.008333333333 | I16: 0.05833333333 | J16: A
A17: 8 | B17: 1008 | C17: Deck | D17: 8999 | E17: 8 | F17: 0.02005459914 | G17: 0.6086355786 | H17: 0.008333333333 | I17: 0.06666666667 | J17: A
A18: 9 | B18: 1010 | C18: Müller | D18: 8997 | E18: 9 | F18: 0.02005014207 | G18: 0.6286857207 | H18: 0.008333333333 | I18: 0.075 | J18: A
A19: 10 | B19: 1011 | C19: Brucher | D19: 8996 | E19: 10 | F19: 0.02004791353 | G19: 0.6487336342 | H19: 0.008333333333 | I19: 0.08333333333 | J19: A
A20: 11 | B20: 1013 | C20: Hermanns | D20: 7998 | E20: 11 | F20: 0.0178238342 | G20: 0.6665574684 | H20: 0.008333333333 | I20: 0.09166666667 | J20: A
A21: 12 | B21: 1015 | C21: Mager | D21: 7996 | E21: 12 | F21: 0.01781937712 | G21: 0.6843768455 | H21: 0.008333333333 | I21: 0.1 | J21: A
A22: 13 | B22: 1017 | C22: Heyl | D22: 7994 | E22: 13 | F22: 0.01781492005 | G22: 0.7021917656 | H22: 0.008333333333 | I22: 0.1083333333 | J22: A
A23: 14 | B23: 1018 | C23: Frenzen | D23: 7992 | E23: 14 | F23: 0.01781046298 | G23: 0.7200022285 | H23: 0.008333333333 | I23: 0.1166666667 | J23: A
A24: 15 | B24: 1019 | C24: Keil | D24: 7990 | E24: 15 | F24: 0.01780600591 | G24: 0.7378082344 | H24: 0.008333333333 | I24: 0.125 | J24: A
A25: 16 | B25: 1020 | C25: Schmitz | D25: 7988 | E25: 16 | F25: 0.01780154883 | G25: 0.7556097833 | H25: 0.008333333333 | I25: 0.1333333333 | J25: A
A26: 17 | B26: 1021 | C26: Seifer | D26: 7986 | E26: 17 | F26: 0.01779709176 | G26: 0.773406875 | H26: 0.008333333333 | I26: 0.1416666667 | J26: A
A27: 18 | B27: 1023 | C27: Hövel | D27: 7984 | E27: 18 | F27: 0.01779263469 | G27: 0.7911995097 | H27: 0.008333333333 | I27: 0.15 | J27: A
A28: 19 | B28: 1035 | C28: Mager | D28: 6500 | E28: 19 | F28: 0.01448548666 | G28: 0.8056849964 | H28: 0.008333333333 | I28: 0.1583333333 | J28: A
A29: 20 | B29: 1036 | C29: Mertens | D29: 6300 | E29: 20 | F29: 0.01403977937 | G29: 0.8197247758 | H29: 0.008333333333 | I29: 0.1666666667 | J29: A
A30: 21 | B30: 1039 | C30: Krämer | D30: 6100 | E30: 21 | F30: 0.01359407209 | G30: 0.8333188478 | H30: 0.008333333333 | I30: 0.175 | J30: A
A31: 22 | B31: 1034 | C31: Köpke | D31: 6000 | E31: 22 | F31: 0.01337121845 | G31: 0.8466900663 | H31: 0.008333333333 | I31: 0.1833333333 | J31: A
A32: 23 | B32: 1027 | C32: Witte | D32: 5900 | E32: 23 | F32: 0.01314836481 | G32: 0.8598384311 | H32: 0.008333333333 | I32: 0.1916666667 | J32: B
A33: 24 | B33: 1030 | C33: Heck | D33: 5700 | E33: 24 | F33: 0.01270265753 | G33: 0.8725410886 | H33: 0.008333333333 | I33: 0.2 | J33: B
A34: 25 | B34: 1012 | C34: Höppner | D34: 5666 | E34: 25 | F34: 0.01262688729 | G34: 0.8851679759 | H34: 0.008333333333 | I34: 0.2083333333 | J34: B
A35: 26 | B35: 1031 | C35: Jamann | D35: 5500 | E35: 26 | F35: 0.01225695025 | G35: 0.8974249262 | H35: 0.008333333333 | I35: 0.2166666667 | J35: B
A36: 27 | B36: 1032 | C36: Roth | D36: 5300 | E36: 27 | F36: 0.01181124297 | G36: 0.9092361691 | H36: 0.008333333333 | I36: 0.225 | J36: B
A37: 28 | B37: 1040 | C37: Kuhn | D37: 2500 | E37: 28 | F37: 0.005571341022 | G37: 0.9148075102 | H37: 0.008333333333 | I37: 0.2333333333 | J37: B
A38: 29 | B38: 1014 | C38: Martinez | D38: 2422 | E38: 29 | F38: 0.005397515182 | G38: 0.9202050253 | H38: 0.008333333333 | I38: 0.2416666667 | J38: B
A39: 30 | B39: 1022 | C39: Schäfer | D39: 2323 | E39: 30 | F39: 0.005176890077 | G39: 0.9253819154 | H39: 0.008333333333 | I39: 0.25 | J39: B
A40: 31 | B40: 1025 | C40: Gerfer | D40: 2323 | E40: 30 | F40: 0.005176890077 | G40: 0.9305588055 | H40: 0.008333333333 | I40: 0.2583333333 | J40: B
A41: 32 | B41: 1051 | C41: Gatzmann | D41: 2310 | E41: 32 | F41: 0.005147919104 | G41: 0.9357067246 | H41: 0.008333333333 | I41: 0.2666666667 | J41: B
A42: 33 | B42: 1041 | C42: Wiemer | D42: 2300 | E42: 33 | F42: 0.00512563374 | G42: 0.9408323583 | H42: 0.008333333333 | I42: 0.275 | J42: B
A43: 34 | B43: 1050 | C43: Heck | D43: 2300 | E43: 33 | F43: 0.00512563374 | G43: 0.9459579921 | H43: 0.008333333333 | I43: 0.2833333333 | J43: B
A44: 35 | B44: 1052 | C44: Keil | D44: 2222 | E44: 35 | F44: 0.0049518079 | G44: 0.9509098 | H44: 0.008333333333 | I44: 0.2916666667 | J44: C
A45: 36 | B45: 1042 | C45: Ganz | D45: 2100 | E45: 36 | F45: 0.004679926458 | G45: 0.9555897264 | H45: 0.008333333333 | I45: 0.3 | J45: C
A46: 37 | B46: 1043 | C46: Jamann | D46: 1900 | E46: 37 | F46: 0.004234219177 | G46: 0.9598239456 | H46: 0.008333333333 | I46: 0.3083333333 | J46: C
A47: 38 | B47: 1044 | C47: Vitt | D47: 1700 | E47: 38 | F47: 0.003788511895 | G47: 0.9636124575 | H47: 0.008333333333 | I47: 0.3166666667 | J47: C
A48: 39 | B48: 1045 | C48: Roth | D48: 1500 | E48: 39 | F48: 0.003342804613 | G48: 0.9669552621 | H48: 0.008333333333 | I48: 0.325 | J48: C
A49: 40 | B49: 1046 | C49: Höfig | D49: 1300 | E49: 40 | F49: 0.002897097331 | G49: 0.9698523595 | H49: 0.008333333333 | I49: 0.3333333333 | J49: C
A50: 41 | B50: 1047 | C50: Müller | D50: 1100 | E50: 41 | F50: 0.00245139005 | G50: 0.9723037495 | H50: 0.008333333333 | I50: 0.3416666667 | J50: C
A51: 42 | B51: 1054 | C51: Helt | D51: 980 | E51: 42 | F51: 0.002183965681 | G51: 0.9744877152 | H51: 0.008333333333 | I51: 0.35 | J51: C
A52: 43 | B52: 1055 | C52: Hagen | D52: 980 | E52: 42 | F52: 0.002183965681 | G52: 0.9766716809 | H52: 0.008333333333 | I52: 0.3583333333 | J52: C
A53: 44 | B53: 1056 | C53: Hermanns | D53: 920 | E53: 44 | F53: 0.002050253496 | G53: 0.9787219344 | H53: 0.008333333333 | I53: 0.3666666667 | J53: C
A54: 45 | B54: 1048 | C54: Binder | D54: 900 | E54: 45 | F54: 0.002005682768 | G54: 0.9807276171 | H54: 0.008333333333 | I54: 0.375 | J54: C
A55: 46 | B55: 1057 | C55: Peters | D55: 876 | E55: 46 | F55: 0.001952197894 | G55: 0.982679815 | H55: 0.008333333333 | I55: 0.3833333333 | J55: C
A56: 47 | B56: 1016 | C56: Hein | D56: 444 | E56: 47 | F56: 0.0009894701655 | G56: 0.9836692852 | H56: 0.008333333333 | I56: 0.3916666667 | J56: C
A57: 48 | B57: 1026 | C57: Seifer | D57: 444 | E57: 47 | F57: 0.0009894701655 | G57: 0.9846587554 | H57: 0.008333333333 | I57: 0.4 | J57: C
A58: 49 | B58: 1033 | C58: Deck | D58: 334 | E58: 49 | F58: 0.0007443311605 | G58: 0.9854030865 | H58: 0.008333333333 | I58: 0.4083333333 | J58: C
A59: 50 | B59: 1038 | C59: Hagen | D59: 333 | E59: 50 | F59: 0.0007421026241 | G59: 0.9861451891 | H59: 0.008333333333 | I59: 0.4166666667 | J59: C
A60: 51 | B60: 1049 | C60: Kolb | D60: 333 | E60: 50 | F60: 0.0007421026241 | G60: 0.9868872918 | H60: 0.008333333333 | I60: 0.425 | J60: C
A61: 52 | B61: 1029 | C61: Wiemer | D61: 320 | E61: 52 | F61: 0.0007131316508 | G61: 0.9876004234 | H61: 0.008333333333 | I61: 0.4333333333 | J61: C
A62: 53 | B62: 1037 | C62: Brinkmann | D62: 222 | E62: 53 | F62: 0.0004947350827 | G62: 0.9880951585 | H62: 0.008333333333 | I62: 0.4416666667 | J62: C
A63: 54 | B63: 1058 | C63: Krämer | D63: 150 | E63: 54 | F63: 0.0003342804613 | G63: 0.988429439 | H63: 0.008333333333 | I63: 0.45 | J63: C
A64: 55 | B64: 1059 | C64: Haber | D64: 150 | E64: 54 | F64: 0.0003342804613 | G64: 0.9887637194 | H64: 0.008333333333 | I64: 0.4583333333 | J64: C
A65: 56 | B65: 1060 | C65: Simon | D65: 150 | E65: 54 | F65: 0.0003342804613 | G65: 0.9890979999 | H65: 0.008333333333 | I65: 0.4666666667 | J65: C
A66: 57 | B66: 1062 | C66: Schäfer | D66: 150 | E66: 54 | F66: 0.0003342804613 | G66: 0.9894322803 | H66: 0.008333333333 | I66: 0.475 | J66: C
A67: 58 | B67: 1063 | C67: Witte | D67: 150 | E67: 54 | F67: 0.0003342804613 | G67: 0.9897665608 | H67: 0.008333333333 | I67: 0.4833333333 | J67: C
A68: 59 | B68: 1064 | C68: Dunkel | D68: 150 | E68: 54 | F68: 0.0003342804613 | G68: 0.9901008413 | H68: 0.008333333333 | I68: 0.4916666667 | J68: C
A69: 60 | B69: 1065 | C69: Hecht | D69: 150 | E69: 54 | F69: 0.0003342804613 | G69: 0.9904351217 | H69: 0.008333333333 | I69: 0.5 | J69: C
A70: 61 | B70: 1066 | C70: Schmitz | D70: 150 | E70: 54 | F70: 0.0003342804613 | G70: 0.9907694022 | H70: 0.008333333333 | I70: 0.5083333333 | J70: C
A71: 62 | B71: 1067 | C71: Hermanns | D71: 150 | E71: 54 | F71: 0.0003342804613 | G71: 0.9911036827 | H71: 0.008333333333 | I71: 0.5166666667 | J71: C
A72: 63 | B72: 1068 | C72: Deck | D72: 113 | E72: 63 | F72: 0.0002518246142 | G72: 0.9913555073 | H72: 0.008333333333 | I72: 0.525 | J72: C
A73: 64 | B73: 1069 | C73: Deck | D73: 112 | E73: 64 | F73: 0.0002495960778 | G73: 0.9916051033 | H73: 0.008333333333 | I73: 0.5333333333 | J73: C
A74: 65 | B74: 1070 | C74: Deck | D74: 111 | E74: 65 | F74: 0.0002473675414 | G74: 0.9918524709 | H74: 0.008333333333 | I74: 0.5416666667 | J74: C
A75: 66 | B75: 1071 | C75: Deck | D75: 110 | E75: 66 | F75: 0.000245139005 | G75: 0.9920976099 | H75: 0.008333333333 | I75: 0.55 | J75: C
A76: 67 | B76: 1118 | C76: Deck | D76: 110 | E76: 66 | F76: 0.000245139005 | G76: 0.9923427489 | H76: 0.008333333333 | I76: 0.5583333333 | J76: C
A77: 68 | B77: 1072 | C77: Deck | D77: 109 | E77: 68 | F77: 0.0002429104685 | G77: 0.9925856594 | H77: 0.008333333333 | I77: 0.5666666667 | J77: C
A78: 69 | B78: 1073 | C78: Deck | D78: 108 | E78: 69 | F78: 0.0002406819321 | G78: 0.9928263413 | H78: 0.008333333333 | I78: 0.575 | J78: C
A79: 70 | B79: 1074 | C79: Deck | D79: 107 | E79: 70 | F79: 0.0002384533957 | G79: 0.9930647947 | H79: 0.008333333333 | I79: 0.5833333333 | J79: C
A80: 71 | B80: 1075 | C80: Deck | D80: 106 | E80: 71 | F80: 0.0002362248593 | G80: 0.9933010196 | H80: 0.008333333333 | I80: 0.5916666667 | J80: C
A81: 72 | B81: 1116 | C81: Frenzen | D81: 105 | E81: 72 | F81: 0.0002339963229 | G81: 0.9935350159 | H81: 0.008333333333 | I81: 0.6 | J81: C
A82: 73 | B82: 1077 | C82: Deck | D82: 103 | E82: 73 | F82: 0.0002295392501 | G82: 0.9937645551 | H82: 0.008333333333 | I82: 0.6083333333 | J82: C
A83: 74 | B83: 1078 | C83: Deck | D83: 102 | E83: 74 | F83: 0.0002273107137 | G83: 0.9939918658 | H83: 0.008333333333 | I83: 0.6166666667 | J83: C
A84: 75 | B84: 1079 | C84: Deck | D84: 101 | E84: 75 | F84: 0.0002250821773 | G84: 0.994216948 | H84: 0.008333333333 | I84: 0.625 | J84: C
A85: 76 | B85: 1080 | C85: Deck | D85: 100 | E85: 76 | F85: 0.0002228536409 | G85: 0.9944398017 | H85: 0.008333333333 | I85: 0.6333333333 | J85: C
A86: 77 | B86: 1115 | C86: Dunkel | D86: 100 | E86: 76 | F86: 0.0002228536409 | G86: 0.9946626553 | H86: 0.008333333333 | I86: 0.6416666667 | J86: C
A87: 78 | B87: 1081 | C87: Deck | D87: 99 | E87: 78 | F87: 0.0002206251045 | G87: 0.9948832804 | H87: 0.008333333333 | I87: 0.65 | J87: C
A88: 79 | B88: 1082 | C88: Deck | D88: 98 | E88: 79 | F88: 0.0002183965681 | G88: 0.995101677 | H88: 0.008333333333 | I88: 0.6583333333 | J88: C
A89: 80 | B89: 1083 | C89: Deck | D89: 97 | E89: 80 | F89: 0.0002161680316 | G89: 0.995317845 | H89: 0.008333333333 | I89: 0.6666666667 | J89: C
A90: 81 | B90: 1084 | C90: Deck | D90: 96 | E90: 81 | F90: 0.0002139394952 | G90: 0.9955317845 | H90: 0.008333333333 | I90: 0.675 | J90: C
A91: 82 | B91: 1085 | C91: Deck | D91: 95 | E91: 82 | F91: 0.0002117109588 | G91: 0.9957434955 | H91: 0.008333333333 | I91: 0.6833333333 | J91: C
A92: 83 | B92: 1113 | C92: Heyl | D92: 95 | E92: 82 | F92: 0.0002117109588 | G92: 0.9959552064 | H92: 0.008333333333 | I92: 0.6916666667 | J92: C
A93: 84 | B93: 1086 | C93: Deck | D93: 94 | E93: 84 | F93: 0.0002094824224 | G93: 0.9961646888 | H93: 0.008333333333 | I93: 0.7 | J93: C
A94: 85 | B94: 1088 | C94: Deck | D94: 92 | E94: 85 | F94: 0.0002050253496 | G94: 0.9963697142 | H94: 0.008333333333 | I94: 0.7083333333 | J94: C
A95: 86 | B95: 1090 | C95: Deck | D95: 90 | E95: 86 | F95: 0.0002005682768 | G95: 0.9965702825 | H95: 0.008333333333 | I95: 0.7166666667 | J95: C
A96: 87 | B96: 1111 | C96: Hermanns | D96: 90 | E96: 86 | F96: 0.0002005682768 | G96: 0.9967708507 | H96: 0.008333333333 | I96: 0.725 | J96: C
A97: 88 | B97: 1091 | C97: Deck | D97: 89 | E97: 88 | F97: 0.0001983397404 | G97: 0.9969691905 | H97: 0.008333333333 | I97: 0.7333333333 | J97: C
A98: 89 | B98: 1092 | C98: Deck | D98: 88 | E98: 89 | F98: 0.000196111204 | G98: 0.9971653017 | H98: 0.008333333333 | I98: 0.7416666667 | J98: C
A99: 90 | B99: 1093 | C99: Deck | D99: 87 | E99: 90 | F99: 0.0001938826676 | G99: 0.9973591844 | H99: 0.008333333333 | I99: 0.75 | J99: C
A100: 91 | B100: 1095 | C100: Deck | D100: 85 | E100: 91 | F100: 0.0001894255947 | G100: 0.99754861 | H100: 0.008333333333 | I100: 0.7583333333 | J100: C
A101: 92 | B101: 1110 | C101: Helt | D101: 85 | E101: 91 | F101: 0.0001894255947 | G101: 0.9977380355 | H101: 0.008333333333 | I101: 0.7666666667 | J101: C
A102: 93 | B102: 1096 | C102: Deck | D102: 84 | E102: 93 | F102: 0.0001871970583 | G102: 0.9979252326 | H102: 0.008333333333 | I102: 0.775 | J102: C
A103: 94 | B103: 1097 | C103: Deck | D103: 83 | E103: 94 | F103: 0.0001849685219 | G103: 0.9981102011 | H103: 0.008333333333 | I103: 0.7833333333 | J103: C
A104: 95 | B104: 1099 | C104: Deck | D104: 81 | E104: 95 | F104: 0.0001805114491 | G104: 0.9982907126 | H104: 0.008333333333 | I104: 0.7916666667 | J104: C
A105: 96 | B105: 1100 | C105: Deck | D105: 80 | E105: 96 | F105: 0.0001782829127 | G105: 0.9984689955 | H105: 0.008333333333 | I105: 0.8 | J105: C
A106: 97 | B106: 1108 | C106: Hein | D106: 80 | E106: 96 | F106: 0.0001782829127 | G106: 0.9986472784 | H106: 0.008333333333 | I106: 0.8083333333 | J106: C
A107: 98 | B107: 1101 | C107: Deck | D107: 79 | E107: 98 | F107: 0.0001760543763 | G107: 0.9988233328 | H107: 0.008333333333 | I107: 0.8166666667 | J107: C
A108: 99 | B108: 1102 | C108: Deck | D108: 78 | E108: 99 | F108: 0.0001738258399 | G108: 0.9989971586 | H108: 0.008333333333 | I108: 0.825 | J108: C
A109: 100 | B109: 1107 | C109: Driesch | D109: 75 | E109: 100 | F109: 0.0001671402307 | G109: 0.9991642988 | H109: 0.008333333333 | I109: 0.8333333333 | J109: C
A110: 101 | B110: 1106 | C110: Kolb | D110: 70 | E110: 101 | F110: 0.0001559975486 | G110: 0.9993202964 | H110: 0.008333333333 | I110: 0.8416666667 | J110: C
A111: 102 | B111: 1104 | C111: Vitt | D111: 65 | E111: 102 | F111: 0.0001448548666 | G111: 0.9994651513 | H111: 0.008333333333 | I111: 0.85 | J111: C
A112: 103 | B112: 1103 | C112: Hövel | D112: 60 | E112: 103 | F112: 0.0001337121845 | G112: 0.9995988634 | H112: 0.008333333333 | I112: 0.8583333333 | J112: C
A113: 104 | B113: 1053 | C113: Brucher | D113: 44 | E113: 104 | F113: 9.805560198e-05 | G113: 0.999696919 | H113: 0.008333333333 | I113: 0.8666666667 | J113: C
A114: 105 | B114: 1089 | C114: Deck | D114: 16 | E114: 105 | F114: 3.565658254e-05 | G114: 0.9997325756 | H114: 0.008333333333 | I114: 0.875 | J114: C
A115: 106 | B115: 1087 | C115: Deck | D115: 15 | E115: 106 | F115: 3.342804613e-05 | G115: 0.9997660037 | H115: 0.008333333333 | I115: 0.8833333333 | J115: C
A116: 107 | B116: 1076 | C116: Deck | D116: 14 | E116: 107 | F116: 3.119950972e-05 | G116: 0.9997972032 | H116: 0.008333333333 | I116: 0.8916666667 | J116: C
A117: 108 | B117: 1061 | C117: Binder | D117: 13 | E117: 108 | F117: 2.897097331e-05 | G117: 0.9998261742 | H117: 0.008333333333 | I117: 0.9 | J117: C
A118: 109 | B118: 1120 | C118: Leven | D118: 12 | E118: 109 | F118: 2.67424369e-05 | G118: 0.9998529166 | H118: 0.008333333333 | I118: 0.9083333333 | J118: C
A119: 110 | B119: 1119 | C119: Seiler | D119: 11 | E119: 110 | F119: 2.45139005e-05 | G119: 0.9998774305 | H119: 0.008333333333 | I119: 0.9166666667 | J119: C
A120: 111 | B120: 1117 | C120: Hecht | D120: 10 | E120: 111 | F120: 2.228536409e-05 | G120: 0.9998997159 | H120: 0.008333333333 | I120: 0.925 | J120: C
A121: 112 | B121: 1112 | C121: Kleiber | D121: 9 | E121: 112 | F121: 2.005682768e-05 | G121: 0.9999197727 | H121: 0.008333333333 | I121: 0.9333333333 | J121: C
A122: 113 | B122: 1109 | C122: Haber | D122: 8 | E122: 113 | F122: 1.782829127e-05 | G122: 0.999937601 | H122: 0.008333333333 | I122: 0.9416666667 | J122: C
A123: 114 | B123: 1105 | C123: Gatzmann | D123: 7 | E123: 114 | F123: 1.559975486e-05 | G123: 0.9999532007 | H123: 0.008333333333 | I123: 0.95 | J123: C
A124: 115 | B124: 1098 | C124: Deck | D124: 6 | E124: 115 | F124: 1.337121845e-05 | G124: 0.999966572 | H124: 0.008333333333 | I124: 0.9583333333 | J124: C
A125: 116 | B125: 1094 | C125: Deck | D125: 5 | E125: 116 | F125: 1.114268204e-05 | G125: 0.9999777146 | H125: 0.008333333333 | I125: 0.9666666667 | J125: C
A126: 117 | B126: 1114 | C126: Mott | D126: 4 | E126: 117 | F126: 8.914145635e-06 | G126: 0.9999866288 | H126: 0.008333333333 | I126: 0.975 | J126: C
A127: 118 | B127: 1028 | C127: Höppner | D127: 3 | E127: 118 | F127: 6.685609226e-06 | G127: 0.9999933144 | H127: 0.008333333333 | I127: 0.9833333333 | J127: C
A128: 119 | B128: 1024 | C128: Brucherseifer | D128: 2 | E128: 119 | F128: 4.457072817e-06 | G128: 0.9999977715 | H128: 0.008333333333 | I128: 0.9916666667 | J128: C
A129: 120 | B129: 1007 | C129: Kuhn | D129: 1 | E129: 120 | F129: 2.228536409e-06 | G129: 1 | H129: 0.008333333333 | I129: 1 | J129: C

Sheet Rapport
A1: © Copyright by MeineVorlagen – www.MeineVorlagen.com - Alle Rechte vorbehalten
A2: =CONCATENATE(" Druck: ",TEXT(TODAY(),"TT.MM.JJ")," um ",TEXT(NOW(),"hh.mm")) -> Druck: 25.10.15 um 14.26
A3: =ABC_Art_DB & " ABC-Analyse" -> Kunden ABC-Analyse | G3: Betrachtungszeitraum: | H3: =Dashboard!G3 -> ??.??.???? bis ??.??.????
A4: =Dashboard!U1 -> MeineVorlagen.com
A5: ="Erstellt von: " & Dashboard!G4 -> Erstellt von: Hans Muster
A7: Wertanteil in Abhängigkeit zum Mengenanteil
A9: Klasse | B9: Kunden | D9: in % | F9: Umsatz | H9: in %
A10: A | B10: 22 | D10: 0.1833333333 | F10: 379931 | H10: 0.8466900663
A11: B | B11: 12 | D11: 0.1 | F11: 44544 | H11: 0.09926792579
A12: C | B12: 86 | D12: 0.7166666667 | F12: 24250 | H12: 0.05404200791
A13: Total | B13: =SUM(B10:C12) -> 120 | D13: =SUM(D10:E12) -> 1 | F13: =SUM(F10:G12) -> 448725 | H13: =SUM(H10:I12) -> 1
A15: Wertanteil vs. Mengenanteil
A37: ="Top 10 " & ABC_Art_DB -> Top 10 Kunden
A39: Kunden | D39: Umsatz
A40: Mott | D40: 110000 | F40: 0.245139005
A41: Arndt | D41: 45000 | F41: 0.1002841384
A42: Brinkmann | D42: 34000 | F42: 0.0757702379
A43: Mertens | D43: 32000 | F43: 0.07131316508
A44: Peters | D44: 20000 | F44: 0.04457072817
A45: Meier | D45: 12000 | F45: 0.0267424369
A46: Ganz | D46: 11111 | F46: 0.02476126804
A47: Deck | D47: 8999 | F47: 0.02005459914
A48: Müller | D48: 8997 | F48: 0.02005014207
A49: Brucher | D49: 8996 | F49: 0.02004791353
A50: ="Total Top 10 " & ABC_Art_DB -> Total Top 10 Kunden | D50: =SUM(D40:E49) -> 291103 | F50: =SUM(F40:F49) -> 0.6487336342
A52: ="Restliche " & ABC_Art_DB -> Restliche Kunden | D52: =SUM('ABC-Analyse'!D10:D900000)-D50 -> 157622 | F52: =1-F50 -> 0.3512663658
A54: © Copyright by MeineVorlagen – www.MeineVorlagen.com - Alle Rechte vorbehalten
